bitfinex-derivatives/quotes_ETHF0:USTF0_20250917
["timestamp","ask_amount","ask_price","bid_price","bid_amount"]
[1758147311476,0.3622,4552.3,4552.2,0.39521]
[1758147311776,0.5084,4552.5,4552.4,0.39519]
[1758147312071,0.9856,4552.5,4552.4,0.39519]
[1758147312277,0.5084,4552.5,4552.4,0.39519]
[1758147313767,0.8394,4552.4,4552.3,0.3952]
[1758147314273,0.4772,4552.4,4552.2,3.60301]
[1758147314469,0.8394,4552.3,4552.2,3.60301]
[1758147314870,0.8394,4552.3,4552.2,3.2078]
[1758147316166,0.3968,4553.0,4552.3,1.97604]
[1758147316373,0.1462,4553.0,4552.9,3.2078]
[1758147316675,0.3968,4553.0,4552.9,3.2078]
[1758147316869,0.9856,4553.0,4552.9,3.2078]
[1758147318168,0.9856,4553.0,4552.5,0.0219]
[1758147318579,0.9856,4553.0,4552.6,0.1757]
[1758147329175,0.8394,4552.7,4552.6,0.1757]
[1758147331578,0.1462,4552.0,4551.7,3.2078]
[1758147331773,0.8394,4551.8,4551.7,3.2078]
[1758147332382,0.3622,4551.8,4551.7,3.2078]
[1758147333082,0.8394,4551.8,4551.7,3.2078]
[1758147334281,0.3622,4551.8,4551.7,3.2078]
[1758147335378,0.6128,4551.8,4551.7,3.2078]
[1758147336689,0.8394,4551.8,4551.7,3.2078]
[1758147338783,0.3622,4551.8,4551.7,3.2078]
[1758147339187,0.6102,4551.8,4551.7,3.2078]
[1758147340287,0.8531,4551.8,4551.7,3.2078]
[1758147340680,0.1411,4551.5,4551.2,3.2078]
[1758147340885,0.8403,4551.3,4551.2,3.2078]
[1758147341382,0.8403,4551.3,4551.2,3.6031]
[1758147342390,0.8403,4551.3,4551.2,3.8301]
[1758147342590,0.5974,4551.3,4551.2,3.8301]
[1758147342792,0.5974,4551.3,4551.2,3.4348]
[1758147343888,0.5974,4551.3,4551.2,3.8301]
[1758147344298,0.8403,4551.3,4551.2,3.4348]
[1758147344495,0.8403,4551.3,4551.2,3.2078]
[1758147344892,0.8403,4551.3,4551.2,3.4338]
[1758147345099,0.8403,4551.3,4551.2,3.2078]
[1758147345395,0.8403,4551.3,4550.9,0.1976]
[1758147345696,0.9814,4551.0,4550.9,0.1976]
[1758147345994,0.9814,4551.0,4550.9,0.1757]
[1758147346200,0.3494,4550.9,4550.7,3.2078]
[1758147346390,0.8403,4550.8,4550.7,3.2078]
[1758147347693,0.1411,4551.0,4550.2,0.226]
[1758147347694,0.8403,4550.3,4550.2,0.226]
[1758147348194,0.248,4550.1,4550.0,3.2078]
[1758147348396,0.5974,4550.1,4550.0,3.2078]
[1758147349000,0.3494,4550.1,4550.0,3.2078]
[1758147349497,0.5974,4550.1,4550.0,3.2078]
[1758147350393,0.8403,4550.1,4550.0,3.2078]
[1758147350789,0.4909,4549.6,4549.5,3.2078]
[1758147350991,0.8403,4549.6,4549.5,3.2078]
[1758147351188,0.5974,4549.6,4549.5,3.2078]
[1758147351699,0.3494,4549.6,4549.5,3.2078]
[1758147352393,0.5974,4549.6,4549.5,3.2078]
[1758147353494,0.8403,4549.6,4549.5,3.2078]
[1758147359702,0.8403,4549.6,4549.5,3.60325]
[1758147360199,0.8403,4549.6,4549.5,3.2078]
[1758147360704,0.8403,4549.6,4549.5,3.60325]
[1758147361204,0.8403,4549.6,4549.5,3.2078]
[1758147362404,0.8403,4549.6,4549.5,3.60325]
[1758147362598,0.8403,4549.6,4549.5,3.2078]
[1758147364807,0.5989,4549.6,4549.5,3.2078]
[1758147365009,0.5989,4549.6,4549.5,3.60325]
[1758147365709,0.5989,4549.6,4549.5,3.2078]
[1758147365904,0.8491,4549.6,4549.5,3.60325]
[1758147366111,0.8491,4549.6,4549.5,3.2078]
[1758147369209,0.8491,4549.6,4549.5,3.60325]
[1758147369705,0.8491,4549.6,4549.5,3.2078]
[1758147371310,0.8475,4549.4,4549.3,0.1758]
[1758147371907,0.5024,4549.1,4549.0,3.2078]
[1758147372112,0.1502,4549.0,4548.9,0.0219]
[1758147372408,0.1502,4549.0,4548.3,3.4328]
[1758147372409,0.8475,4548.4,4548.3,3.2078]
[1758147372815,4.8475,4548.4,4548.3,3.2078]
[1758147373010,0.1502,4548.5,4547.6,3.2078]
[1758147373011,0.5024,4547.7,4547.6,3.2078]
[1758147373207,0.8475,4547.7,4547.6,3.2078]
[1758147373813,0.3451,4547.9,4547.6,7.42769]
[1758147374007,0.1502,4548.0,4547.9,0.39558]
[1758147374409,0.4953,4548.0,4547.9,0.39558]
[1758147377719,0.4953,4548.5,4548.4,0.39554]
[1758147378018,0.1502,4549.0,4548.4,0.39554]
[1758147378019,0.4953,4549.0,4548.9,0.3955]
[1758147378215,0.4953,4549.0,4548.9,3.6033]
[1758147379418,0.7475,4549.0,4548.9,3.6033]
[1758147380224,0.4953,4549.0,4548.9,3.6033]
[1758147381020,0.7475,4549.0,4548.9,3.6033]
[1758147381221,0.9977,4549.0,4548.9,3.2078]
[1758147381916,0.7475,4549.0,4548.9,3.2078]
[1758147382117,0.4953,4549.0,4548.9,3.2078]
[1758147384021,0.7475,4549.0,4548.9,3.2078]
[1758147384527,0.9977,4549.0,4548.9,3.2078]
[1758147385524,0.4953,4548.5,4548.4,3.60333]
[1758147385827,0.7475,4548.5,4548.4,3.60333]
[1758147386322,0.9977,4548.5,4548.4,3.60333]
[1758147386626,0.9977,4548.5,4548.4,3.82833]
[1758147388325,0.4953,4548.5,4548.4,3.82833]
[1758147388725,0.7475,4548.5,4548.4,3.82833]
[1758147390331,0.4953,4548.5,4548.4,3.82833]
[1758147390636,0.7475,4548.5,4548.4,3.82833]
[1758147391228,0.9977,4548.5,4548.4,3.82833]
[1758147391829,0.4953,4548.5,4548.4,3.60333]
[1758147392026,0.4953,4548.5,4548.4,3.82833]
[1758147394429,0.7475,4548.5,4548.4,3.82833]
[1758147395829,0.7475,4548.5,4548.4,3.4328]
[1758147396031,0.9977,4548.5,4547.9,3.2078]
[1758147396339,0.9977,4548.5,4547.0,0.1407]
[1758147396340,0.3555,4547.7,4546.7,3.2078]
[1758147396538,0.3555,4546.2,4546.0,0.3443]
[1758147396736,0.8266,4546.1,4546.0,0.3443]
[1758147397531,0.8266,4546.1,4545.7,3.2078]
[1758147397532,0.3555,4546.0,4545.8,0.3443]
[1758147397744,0.3555,4546.6,4545.8,0.4713]
[1758147398043,0.8266,4546.6,4546.5,0.571]
[1758147398241,1.0526,4546.6,4546.5,0.571]
[1758147398939,1.0526,4546.6,4546.0,0.1407]
[1758147399140,0.6971,4546.6,4546.0,0.1407]
[1758147399340,1.0526,4546.6,4546.1,0.3443]
[1758147399542,0.6971,4546.6,4546.1,0.3443]
[1758147399744,1.0526,4546.6,4546.1,0.3443]
[1758147399951,1.0526,4546.6,4546.0,0.1407]
[1758147399952,0.6971,4546.6,4546.0,0.1407]
[1758147400146,0.6971,4546.6,4546.1,0.3443]
[1758147400744,1.0526,4546.6,4546.1,0.3443]
[1758147401138,0.6971,4546.6,4546.0,0.1407]
[1758147401444,1.0526,4546.6,4546.1,0.3443]
[1758147401647,0.8266,4546.1,4546.0,0.485]
[1758147401837,0.3555,4546.0,4545.5,0.1626]
[1758147402042,0.466,4546.0,4545.9,0.4713]
[1758147402445,0.6971,4546.0,4545.9,0.8156]
[1758147403139,1.1148,4546.0,4545.7,3.2078]
[1758147403345,1.1148,4546.0,4545.5,0.0219]
[1758147403545,0.4711,4545.6,4545.5,0.3662]
[1758147403848,0.8266,4545.6,4545.5,0.3662]
[1758147404045,4.8266,4545.6,4545.5,0.0219]
[1758147404650,1.0536,4545.6,4545.5,0.5929]
[1758147405250,4.2614,4545.6,4545.5,0.0219]
[1758147407452,1.0536,4545.6,4545.5,0.0219]
[1758147409245,1.0526,4545.6,4545.5,0.7336]
[1758147409449,0.8266,4545.6,4545.5,0.7336]
[1758147409752,0.6971,4545.6,4545.5,0.9782]
[1758147409948,0.6971,4545.6,4545.5,0.3662]
[1758147410147,4.2604,4545.6,4545.5,0.0219]
[1758147412046,1.0526,4545.6,4545.5,0.0219]
[1758147412448,4.2604,4545.6,4545.5,0.0219]
[1758147413047,4.2604,4545.6,4544.5,0.1407]
[1758147413048,8.2604,4545.6,4544.6,0.3443]
[1758147413254,3.2078,4545.1,4544.6,0.3443]
[1758147413546,0.226,4545.0,4544.2,0.3443]
[1758147413752,3.2078,4544.4,4544.2,0.3443]
[1758147413953,0.226,4544.3,4544.2,0.3443]
[1758147414749,0.226,4544.3,4544.0,0.1407]
[1758147414956,0.226,4544.3,4544.0,0.485]
[1758147415155,0.226,4544.3,4543.6,0.3443]
[1758147416455,0.226,4544.3,4543.6,0.571]
[1758147417255,40.8,4545.0,4543.6,0.8156]
[1758147417256,3.2078,4543.7,4543.6,0.8156]
[1758147417558,0.228,4544.1,4544.0,0.7117]
[1758147417756,3.2078,4544.5,4544.1,0.3443]
[1758147417959,0.0072,4544.6,4544.5,0.5973]
[1758147418146,0.2424,4544.6,4544.5,0.9668]
[1758147418452,0.2424,4544.6,4544.5,0.7369]
[1758147418659,0.2469,4544.6,4544.1,0.3695]
[1758147418856,0.2469,4544.6,4544.0,0.5102]
[1758147419062,0.0144,4544.1,4544.0,0.5102]
[1758147419247,0.0072,4544.1,4544.0,0.9719]
[1758147419560,0.0072,4544.1,4543.5,3.3485]
[1758147419561,0.2459,4544.1,4543.5,3.3485]
[1758147419755,3.2222,4543.6,4543.5,0.1407]
[1758147419954,3.4502,4543.6,4543.5,0.1407]
[1758147420146,3.4502,4543.6,4543.5,0.5102]
[1758147420147,48.2502,4543.6,4543.5,0.5102]
[1758147420354,48.2502,4543.6,4543.4,0.0072]
[1758147420355,48.2547,4543.6,4543.4,0.0072]
[1758147420654,40.8144,4543.6,4543.5,0.745]
[1758147420858,44.2502,4543.6,4543.5,0.745]
[1758147421457,44.2502,4543.6,4543.2,0.02201116]
[1758147421458,44.2547,4543.6,4543.2,0.02201116]
[1758147421659,0.0144,4543.4,4543.3,0.3695]
[1758147421860,44.2358,4543.6,4543.2,0.02201116]
[1758147421861,0.0189,4543.3,4543.2,0.02201116]
[1758147422060,0.2424,4543.3,4543.2,0.62331116]
[1758147422259,0.2352,4543.3,4543.2,0.85321116]
[1758147422558,40.8,4543.6,4543.5,0.9749]
[1758147422758,3.2078,4544.1,4544.0,0.9749]
[1758147422759,3.215,4544.1,4544.0,0.9749]
[1758147422958,0.0072,4544.6,4544.5,0.1437]
[1758147423160,41.0352,4544.6,4544.5,0.3755]
[1758147423361,41.0424,4544.6,4544.5,0.1437]
[1758147423656,41.0424,4544.6,4544.5,0.5132]
[1758147423858,0.2424,4544.6,4544.5,0.5132]
[1758147424053,0.0144,4544.6,4544.5,0.745]
[1758147424261,0.0144,4544.6,4544.5,0.6054]
[1758147424262,0.44606253,4544.6,4544.5,0.6054]
[1758147424459,0.44605028,4544.6,4544.5,0.6054]
[1758147424866,0.228,4544.6,4544.5,0.9749]
[1758147425166,3.2078,4545.2,4544.5,0.6054]
[1758147425468,0.95220397,4545.1,4545.0,0.5132]
[1758147426066,0.95340397,4545.1,4544.5,0.1437]
[1758147426260,0.95340397,4545.1,4544.5,0.9585]
[1758147426261,0.0019,4544.6,4544.5,0.9585]
[1758147426466,0.93780397,4544.6,4544.5,0.9585]
[1758147426667,0.21837848,4544.6,4544.5,0.9585]
[1758147426866,3.2078,4545.3,4545.2,0.8148]
[1758147427061,3.92777149,4545.3,4545.2,0.8148]
[1758147427359,3.69977149,4545.3,4545.2,0.8148]
[1758147427560,3.92777149,4545.3,4545.2,0.8148]
[1758147427767,3.4358,4545.3,4545.2,0.8148]
[1758147427968,0.228,4545.3,4545.2,0.4755]
[1758147428157,0.228,4545.3,4545.2,0.8148]
[1758147428666,35.646,4545.5,4545.3,0.3393]
[1758147428865,0.228,4545.4,4545.3,0.8148]
[1758147430569,35.646,4545.5,4545.4,0.3393]
[1758147430765,35.646,4545.5,4545.4,0.8148]
[1758147430766,36.36644299,4545.5,4545.4,0.8148]
[1758147430967,35.874,4545.5,4545.4,0.8148]
[1758147431365,36.13855362,4545.5,4545.4,0.8148]
[1758147431562,36.36655362,4545.5,4545.4,0.8148]
[1758147431961,36.13855362,4545.5,4545.4,0.8148]
[1758147432161,35.874,4545.5,4545.4,4.8148]
[1758147432663,3.2078,4546.2,4545.4,4.8148]
[1758147432875,0.49267417,4546.1,4546.0,0.9551]
[1758147433165,4.40627417,4546.1,4545.5,0.1403]
[1758147433365,0.4778,4545.6,4545.5,0.7265]
[1758147433568,0.227,4545.6,4545.5,0.9551]
[1758147434171,0.2378,4545.7,4545.6,0.8148]
[1758147434470,0.95760509,4545.7,4545.6,0.8148]
[1758147434769,1.19760509,4545.7,4545.6,0.8148]
[1758147436068,1.19760509,4545.7,4545.4,0.176]
[1758147436270,3.9051,4545.5,4545.4,0.176]
[1758147436472,4.39788577,4545.5,4545.4,0.176]
[1758147436766,4.62588577,4545.5,4545.4,0.176]
[1758147437164,8.62588577,4545.5,4544.7,0.3393]
[1758147437369,0.1394,4544.6,4544.5,0.3906]
[1758147437573,0.3674,4544.6,4544.5,0.1437]
[1758147437966,0.3674,4544.6,4544.0,0.1403]
[1758147438169,0.1394,4544.1,4544.0,0.4796]
[1758147438377,0.3674,4544.1,4544.0,0.4796]
[1758147438968,0.3674,4544.1,4544.0,0.9551]
[1758147439276,0.2977,4544.1,4544.0,0.9551]
[1758147440070,0.228,4544.1,4544.0,0.9551]
[1758147440271,3.2078,4544.9,4544.8,0.4755]
[1758147440477,0.93594825,4544.9,4544.8,0.8148]
[1758147440669,0.93694825,4544.9,4544.8,0.8148]
[1758147441069,1.00664825,4544.9,4544.8,0.8148]
[1758147441476,0.70894825,4544.9,4544.8,0.8148]
[1758147441678,0.228,4544.9,4544.8,0.4755]
[1758147441977,0.228,4544.9,4544.8,0.8148]
[1758147442173,3.2078,4545.5,4545.0,0.1403]
[1758147442378,0.93690894,4545.4,4545.3,0.8148]
[1758147442575,0.4440256,4545.4,4545.3,0.8148]
[1758147442779,3.2078,4545.5,4545.3,0.8148]
[1758147443077,0.228,4545.5,4545.3,0.4755]
[1758147443275,0.228,4545.5,4545.4,0.8148]
[1758147443577,0.44397601,4545.5,4545.4,0.8148]
[1758147443779,0.21597601,4545.5,4545.4,0.8148]
[1758147444276,0.228,4545.6,4545.4,0.8148]
[1758147444469,0.228,4545.6,4545.5,0.9551]
[1758147444670,0.44397518,4545.6,4545.5,0.9551]
[1758147445076,0.51367518,4545.6,4545.5,0.9551]
[1758147445277,0.58336661,4545.6,4545.5,0.7265]
[1758147446481,0.58336661,4545.6,4545.0,0.1403]
[1758147446482,3.65176661,4545.6,4545.0,0.1403]
[1758147446682,0.1394,4545.1,4545.0,0.9551]
[1758147446887,0.1394,4545.1,4545.0,0.4796]
[1758147447179,0.3664,4545.1,4545.0,0.7265]
[1758147448476,0.3664,4545.1,4545.0,0.4796]
[1758147448880,0.3664,4545.1,4545.0,0.7265]
[1758147450080,0.3664,4545.1,4544.5,0.1403]
[1758147450081,0.0435,4545.0,4544.5,0.1403]
[1758147450284,0.1394,4544.6,4544.5,0.4796]
[1758147450483,0.3664,4544.6,4544.5,0.4796]
[1758147450676,3.6177,4544.6,4544.5,0.4796]
[1758147450884,3.5742,4544.6,4544.5,0.4796]
[1758147451388,3.79040833,4544.6,4544.5,0.4796]
[1758147453087,0.58260833,4544.6,4544.5,0.4796]
[1758147453288,3.79040833,4544.6,4544.5,0.4796]
[1758147454781,3.83390833,4544.6,4544.5,0.4796]
[1758147456093,0.4099,4544.6,4544.5,0.4796]
[1758147456386,0.62669175,4544.6,4544.5,0.4796]
[1758147456789,0.58319175,4544.6,4544.5,0.4796]
[1758147457387,0.61759175,4544.6,4544.5,0.4796]
[1758147457790,0.58319175,4544.6,4544.5,0.7104]
[1758147458093,0.3664,4544.6,4544.5,0.7104]
[1758147458288,40.8,4545.0,4544.5,0.9528]
[1758147458489,0.4437548,4544.9,4544.8,0.4732]
[1758147458691,0.4437548,4544.9,4544.8,0.8417]
[1758147459194,0.2167548,4544.9,4544.8,0.8417]
[1758147459393,0.4437548,4544.9,4544.8,0.8417]
[1758147460390,0.44373119,4544.9,4544.8,0.8417]
[1758147460793,3.2078,4545.2,4544.8,0.8417]
[1758147460988,0.227,4545.1,4545.0,0.9903]
[1758147464893,40.8,4546.3,4546.2,0.8417]
[1758147464894,4.0106,4546.3,4546.2,0.8417]
[1758147465099,4.94743202,4546.3,4545.6,0.3685]
[1758147465392,0.8028,4545.7,4545.6,0.5993]
[1758147465601,1.0298,4545.7,4545.6,0.5993]
[1758147466193,1.0298,4545.7,4545.6,0.8417]
[1758147467896,0.8028,4545.7,4545.6,0.8417]
[1758147468096,1.0298,4545.7,4545.6,0.8417]
[1758147468494,1.0298,4545.7,4545.6,0.4732]
[1758147469089,1.0298,4545.7,4545.6,0.8417]
[1758147470296,1.0298,4545.7,4545.6,0.4732]
[1758147471398,1.0298,4545.7,4545.6,0.8417]
[1758147475801,1.0288,4545.7,4545.6,0.8417]
[1758147476996,0.3357,4546.2,4545.7,0.3685]
[1758147477197,0.226,4546.1,4546.0,0.9903]
[1758147477406,0.4621,4546.1,4546.0,0.9903]
[1758147477599,0.226,4546.1,4546.0,0.6218]
[1758147477793,0.226,4546.1,4546.0,0.9903]
[1758147478001,0.7978,4546.1,4546.0,0.9903]
[1758147478699,1.0288,4546.1,4546.0,0.9903]
[1758147479498,1.0288,4546.1,4546.0,0.8417]
[1758147479693,0.4469,4545.6,4545.5,0.5782]
[1758147480006,1.0063,4545.6,4545.5,0.8093]
[1758147480392,0.6729,4545.6,4545.5,0.9571]
[1758147480605,0.5577,4545.9,4545.8,0.4576]
[1758147480807,0.7837,4545.9,4545.8,0.8093]
[1758147481001,0.5577,4545.9,4545.8,0.8093]
[1758147481201,0.4503,4545.9,4545.8,0.8093]
[1758147481404,1.0063,4545.9,4545.8,0.8093]
[1758147482102,0.4503,4545.9,4545.8,0.8093]
[1758147483606,0.7837,4545.9,4545.8,0.8093]
[1758147484105,0.4503,4545.9,4545.8,0.8093]
[1758147484507,0.7837,4545.9,4545.8,0.8093]
[1758147484704,3.5412,4546.3,4545.8,0.4576]
[1758147485002,3.5412,4546.3,4546.1,0.8093]
[1758147485003,0.226,4546.2,4546.1,0.8093]
[1758147485208,0.7837,4546.2,4546.1,0.8093]
[1758147485409,1.0063,4546.2,4546.1,0.8093]
[1758147490313,1.50456967,4546.2,4546.1,0.8093]
[1758147492109,1.71280282,4546.2,4546.1,0.8093]
[1758147492412,0.72426967,4546.2,4546.1,0.8093]
[1758147492815,0.95846967,4546.2,4546.1,0.8093]
[1758147493209,0.8139,4546.1,4546.0,0.6022]
[1758147493408,0.8139,4546.1,4546.0,0.8285]
[1758147493714,0.8139,4546.1,4546.0,0.9675]
[1758147493911,0.2342,4546.1,4546.0,0.9675]
[1758147494112,0.226,4546.1,4546.0,0.6053]
[1758147494509,0.3412,4547.3,4546.7,0.4663]
[1758147494707,0.3412,4547.3,4546.9,0.8285]
[1758147494708,0.93384997,4547.0,4546.9,0.8285]
[1758147495016,0.1412,4548.0,4546.9,0.8285]
[1758147495318,0.3412,4548.5,4548.1,0.8285]
[1758147495507,35.645,4548.8,4548.1,0.8285]
[1758147495708,0.226,4548.6,4548.1,0.8285]
[1758147496017,35.645,4548.8,4548.1,4.8285]
[1758147496218,0.226,4548.7,4548.1,4.8285]
[1758147496415,0.7912,4549.4,4548.1,5.04837]
[1758147496712,1.2639,4549.4,4549.3,0.8285]
[1758147496920,1.85449752,4549.4,4549.3,0.8285]
[1758147497112,1.85449752,4549.4,4549.3,0.4663]
[1758147497417,1.3569,4549.4,4549.3,0.4663]
[1758147498011,1.4899,4549.4,4549.3,0.4663]
[1758147498205,1.4899,4549.4,4549.3,0.8285]
[1758147498206,0.45,4549.4,4549.3,0.8285]
[1758147500219,0.6842,4549.4,4549.3,0.8285]
[1758147501023,0.45,4549.4,4549.3,0.8285]
[1758147509112,0.6119,4550.5,4550.4,0.2263]
[1758147509522,0.6119,4550.5,4549.9,3.2078]
[1758147509820,0.5754,4550.0,4549.9,4.0363]
[1758147510213,0.5754,4550.0,4549.9,0.8285]
[1758147510422,0.9531,4550.0,4549.9,0.2263]
[1758147511520,0.9531,4550.0,4549.9,0.4663]
[1758147511925,0.7146,4549.5,4549.4,4.0363]
[1758147512129,0.1392,4550.0,4549.4,4.0363]
[1758147512318,0.1392,4550.0,4549.9,0.8285]
[1758147512623,0.6119,4550.0,4549.9,0.4663]
[1758147512823,0.9531,4550.0,4549.9,0.4663]
[1758147513626,0.6119,4549.5,4549.4,3.4341]
[1758147513824,0.9531,4549.5,4549.4,0.2263]
[1758147514725,0.9531,4549.5,4549.4,0.4663]
[1758147515122,0.1392,4550.0,4549.4,0.4663]
[1758147515327,0.5754,4549.6,4549.5,0.8285]
[1758147516031,0.8139,4549.6,4549.5,0.4663]
[1758147516923,0.8139,4549.6,4549.5,0.7971]
[1758147519127,0.8139,4549.6,4549.5,0.2263]
[1758147520529,0.8139,4549.6,4549.5,0.4706]
[1758147521926,0.1392,4550.0,4549.6,0.3308]
[1758147522226,0.8031,4549.9,4549.8,0.4644]
[1758147524235,1.30130102,4549.9,4549.8,0.4644]
[1758147525731,1.30130102,4549.9,4549.5,0.3308]
[1758147525732,1.30130102,4549.9,4549.2,0.1758]
[1758147525932,0.9467,4549.5,4549.4,0.2201]
[1758147526230,0.8031,4550.2,4550.1,0.4644]
[1758147526437,1.50406795,4550.2,4550.1,0.4644]
[1758147527732,1.26086795,4550.2,4550.1,0.7952]
[1758147527929,1.05857615,4550.2,4550.1,0.7952]
[1758147528931,1.30177615,4550.2,4550.1,0.7952]
[1758147529435,1.30177615,4550.2,4550.1,0.4644]
[1758147529733,1.30177615,4550.2,4550.1,0.7952]
[1758147532028,1.05857615,4550.2,4550.1,0.7952]
[1758147532431,1.30177615,4550.2,4550.1,0.7952]
[1758147533034,1.30177615,4550.2,4550.1,0.4644]
[1758147533235,1.30177615,4550.2,4550.1,0.2201]
[1758147533432,0.97367615,4550.2,4549.9,3.4055]
[1758147533635,0.9467,4550.0,4549.9,3.6256]
[1758147533838,0.82677615,4550.0,4549.9,4.2007]
[1758147534038,0.49867615,4550.0,4549.9,4.2007]
[1758147534242,0.82677615,4550.0,4549.9,4.2007]
[1758147534439,0.3281,4550.0,4549.9,4.2007]
[1758147534643,0.5599,4550.0,4549.9,4.2007]
[1758147538040,0.9406,4550.0,4549.9,3.8699]
[1758147538535,0.9406,4550.0,4549.9,3.6256]
[1758147538739,0.9406,4550.0,4549.9,0.1977]
[1758147538939,1.43879613,4550.0,4549.9,0.1977]
[1758147541553,1.64127508,4550.0,4549.9,0.1977]
[1758147541744,5.31317508,4550.0,4548.9,3.2078]
[1758147541944,5.31317508,4550.0,4548.9,3.4399]
[1758147541945,0.9422,4549.0,4548.9,3.4399]
[1758147542144,0.9422,4549.0,4548.9,4.0061]
[1758147542649,0.9422,4549.0,4548.9,3.2078]
[1758147543345,0.9422,4549.0,4548.5,0.3474]
[1758147543955,0.9422,4549.0,4548.3,0.39878618]
[1758147543956,0.9422,4549.0,4548.4,0.3474]
[1758147544150,0.9422,4549.0,4548.9,0.2321]
[1758147544838,0.9422,4549.0,4548.9,0.7983]
[1758147544839,0.5689,4549.0,4548.9,0.7983]
[1758147545338,0.1375,4549.5,4548.9,0.4509]
[1758147545544,0.5689,4549.5,4549.4,0.8031]
[1758147545845,1.41414569,4549.5,4549.4,0.8031]
[1758147546044,1.41414569,4549.5,4549.4,0.4509]
[1758147546239,0.9162,4549.5,4549.4,0.4509]
[1758147547149,0.9162,4549.5,4549.4,0.2321]
[1758147547552,0.9162,4549.5,4549.1,0.3522]
[1758147547744,0.1311,4549.0,4548.8,3.2078]
[1758147548055,0.1311,4549.0,4548.6,0.3522]
[1758147548056,0.7829,4548.7,4548.6,0.445]
[1758147548353,0.7829,4548.7,4548.6,0.2283]
[1758147549348,0.1311,4548.5,4548.2,3.2078]
[1758147549657,0.7829,4548.3,4548.2,3.4361]
[1758147550048,0.7829,4548.3,4548.2,4.005]
[1758147550348,0.7829,4548.3,4548.2,3.6528]
[1758147550750,0.7829,4548.3,4548.2,4.005]
[1758147553752,0.2169,4548.3,4548.2,4.005]
[1758147554053,0.1311,4549.0,4548.2,4.005]
[1758147554054,1.0079,4548.8,4548.7,0.2283]
[1758147554350,1.0079,4548.8,4548.2,3.2078]
[1758147554351,0.1311,4548.5,4548.2,3.2078]
[1758147554671,0.7829,4548.3,4548.2,3.2078]
[1758147555444,0.7829,4548.3,4548.2,3.6528]
[1758147555752,0.7829,4548.3,4548.2,4.005]
[1758147557353,0.7829,4548.3,4548.2,3.2078]
[1758147557543,0.7829,4548.3,4548.2,3.4361]
[1758147557953,0.7829,4548.3,4548.1,0.1758]
[1758147559254,0.3498,4548.6,4548.3,0.445]
[1758147559447,0.2169,4548.5,4548.4,0.7972]
[1758147559647,0.5667,4548.5,4548.4,0.7972]
[1758147559853,0.7829,4548.5,4548.4,0.7972]
[1758147562256,0.914,4548.5,4548.4,0.445]
[1758147563556,0.3498,4548.4,4548.0,3.56]
[1758147563855,0.7829,4548.1,4548.0,4.005]
[1758147564657,0.7829,4548.1,4548.0,3.4361]
[1758147564857,0.7829,4548.1,4548.0,0.2283]
[1758147565247,0.4809,4548.0,4547.6,0.5772]
[1758147565452,0.7829,4547.7,4547.6,1.0222]
[1758147567555,0.7829,4547.7,4547.6,0.7972]
[1758147567757,0.1311,4548.0,4547.3,0.1759]
[1758147567758,0.7829,4547.4,4547.3,0.1759]
[1758147568257,0.914,4547.0,4546.9,3.2078]
[1758147568962,4.914,4547.0,4546.9,3.2078]
[1758147569260,0.7829,4545.4,4545.0,3.2078]
[1758147569466,1.0079,4545.4,4545.0,3.2078]
[1758147569965,8.2157,4545.4,4544.6,0.022]
[1758147571461,3.9907,4545.4,4544.6,0.022]
[1758147571661,4.2157,4545.4,4544.8,0.3522]
[1758147571861,8.2157,4545.4,4544.7,0.176]
[1758147572059,8.2157,4545.4,4545.3,1.012e-05]
[1758147572958,8.43571,4545.4,4545.3,1.012e-05]
[1758147573768,8.2157,4545.4,4545.3,1.012e-05]
[1758147575567,7.9907,4545.4,4545.3,1.012e-05]
[1758147576067,3.9907,4545.4,4545.3,0.57691012]
[1758147576370,4.2157,4545.4,4545.3,0.57691012]
[1758147577169,3.8659,4545.4,4545.3,1.012e-05]
[1758147577568,7.8659,4545.4,4544.7,0.176]
[1758147577775,0.8048,4544.8,4544.7,0.176]
[1758147577963,1.0298,4544.8,4543.8,0.3516]
[1758147578270,0.8048,4543.9,4543.8,0.5769]
[1758147578468,0.8048,4543.9,4543.8,0.3516]
[1758147578469,1.0298,4543.9,4543.8,0.3516]
[1758147578971,1.0298,4543.9,4543.8,0.5769]
[1758147580770,0.8048,4543.9,4543.8,0.5769]
[1758147580970,3.2078,4544.4,4544.1,0.4552]
[1758147580971,0.226,4544.2,4544.1,0.4552]
[1758147581170,0.226,4544.2,4544.1,0.8068]
[1758147581376,0.684,4544.2,4544.1,0.8068]
[1758147581573,1.0308,4544.2,4544.1,0.8068]
[1758147581766,0.684,4544.2,4544.1,0.8068]
[1758147582476,0.458,4544.2,4544.1,0.8068]
[1758147582771,1.0308,4544.2,4544.1,0.5769]
[1758147583769,0.8048,4544.2,4544.1,0.3516]
[1758147583964,0.8048,4544.2,4543.6,0.3516]
[1758147583965,1.0308,4544.2,4543.6,0.3516]
[1758147584169,0.458,4543.4,4543.3,0.3647]
[1758147584370,1.0308,4543.4,4543.3,0.7163]
[1758147584678,1.0308,4543.4,4543.3,0.5989]
[1758147584978,0.684,4543.4,4543.3,0.8288]
[1758147585167,0.684,4543.4,4543.3,0.8068]
[1758147585567,0.458,4543.4,4543.3,0.8068]
[1758147585775,0.4601,4543.4,4543.3,0.8068]
[1758147586969,0.684,4543.4,4543.3,0.8068]